Cogmind - Beta 13 @@@ ROGUE MODE // 2024.04.01 @ 12:49:40 Player: Fblade Result: Destroyed by S-10 Pest with Light Assault Rifle Performance ------------- Evolutions (0) 0 Regions Visited (2) 400 Robots Destroyed (18) 90 Value Destroyed (363) 363 Prototype IDs (0) 0 Alien Tech Used (0) 0 Bonus (7) 7 TOTAL SCORE: 860 Bonus ------- Follower Combat Kills 7 Cogmind --------- Core Integrity 0/250 Matter 300/300 Energy 249/250 System Corruption 1% Temperature Cool (4) Movement Hovering (77) Location -10/Mines Parts ------- > --- POWER (1) -------- Ion Engine > --- PROPULSION (2) --- Combat Airjet Combat Airjet > --- UTILITY (2) ------ Improved Heat Sink Utility Shielding > --- WEAPON (2) ------- Particle Gun Beam Cannon > --- INVENTORY (5) ---- Light Ion Engine Light Angular Momentum Engine Large Battery (200) Light Assault Rifle Peak State ------------ > --- POWER ------------ Ion Engine > --- PROPULSION ------- Combat Airjet Combat Airjet > --- UTILITY ---------- Improved Heat Sink Utility Shielding > --- WEAPON ----------- Particle Gun Beam Cannon > --- INVENTORY -------- Light Ion Engine Large Battery Light Assault Rifle [Rating: 18] Favorites ----------- Power Ion Engine Engine Ion Engine Propulsion Aluminum Leg Leg Aluminum Leg Wheel Wheel Hover Unit Combat Airjet Utility Improved Heat Sink Device Improved Heat Sink Storage Large Battery Protection Utility Shielding Weapon Beamcaster Energy Gun Beamcaster Energy Cannon Beam Cannon Ballistic Gun Light Assault Rifle Impact Weapon Hammer Build | -11 -10 -10 ------- Run | Yrd Mat Min Slots Evolved . | . . . Power . | . . . Propulsion . | . . . Utility . | . . . Weapon . | . . . Parts Attached 25 | 6 9 10 Power 3 | 1 1 1 Engine 3 | 1 1 1 Core . | . . . Reactor . | . . . Propulsion 9 | 2 3 4 Treads . | . . . Leg 5 | 2 1 2 Wheel 2 | . 2 . Hover 2 | . . 2 Flight . | . . . Utility 6 | 1 3 2 Device 3 | 1 1 1 Storage 2 | . 2 . Processor . | . . . Hackware . | . . . Protection 1 | . . 1 Artifact . | . . . Weapon 7 | 2 2 3 Energy Gun 4 | 2 . 2 Energy Cannon 1 | . . 1 Ballistic Gun 1 | . 1 . Ballistic Cannon . | . . . Launcher . | . . . Special Weapon . | . . . Impact Weapon 1 | . 1 . Slashing Weapon . | . . . Piercing Weapon . | . . . Special Melee Weapon . | . . . Unidentified Prototypes . | . . . Corrupted Parts 1 | 1 . . System Corruption 1 | 1 . . Parts Lost 4 | . 2 2 Power . | . . . Propulsion 3 | . 1 2 Utility . | . . . Weapon 1 | . 1 . Highest Loss Streak 2 | . 2 2 To Critical Strikes . | . . . Average Slot Usage (%) 96 | . 92 98 Engine 14 | . 14 14 Leg 18 | . 24 14 Wheel 7 | . 3 10 Device 9 | . 5 12 Storage 11 | . 18 7 Protection 4 | . . 7 Energy Gun 15 | . 20 12 Energy Cannon 3 | . . 6 Ballistic Gun 4 | . . 7 Impact Weapon 2 | . 4 1 Naked Turns . | . . . Heaviest Build 17 | 8 17 16 Greatest Support 25 | 20 20 25 Greatest Overweight (x) 4 | . 1 4 Average Overweight (x) . | . . . Largest Inventory Capacity 8 | 5 8 8 Average Capacity 5 | 5 7 5 Most Carried 8 | 5 8 8 Average Carried 4 | 2 5 4 Final Capacity 8 | 5 8 5 Final Carried 6 | 3 6 4 Class Distribution -------------------- 55% | Mutant 44% | Scavenger-Mutant Dominant Class ---------------- Mutant | -10/Materials Scavenger-Mutant | -10/Mines Resources | -11 -10 -10 ----------- Run | Yrd Mat Min Matter Collected 509 | 250 131 128 Remotely . | . . . Salvage Created 416 | 45 140 231 Parts 24 | 1 10 13 Haulers Intercepted . | . . . Recyclers Shooed . | . . . Parts Field Recycled . | . . . Retrieved Matter . | . . . Parts Self-Destructed . | . . . Prevented . | . . . Kills | -11 -10 -10 ------- Run | Yrd Mat Min Combat Hostiles Destroyed 16 | 1 4 11 Melee 2 | . 2 . Guns 12 | 1 2 9 Cannons 2 | . . 2 Classes Destroyed 5 | 1 3 1 Worker 1 | . 1 . Watcher 1 | . 1 . Swarmer 10 | . 2 8 Grunt 5 | 1 2 2 Demolisher 1 | . . 1 Best Kill Streak 3 | 1 2 3 Combat Bots Only 3 | 1 2 3 Max Kills in Single Turn 1 | 1 1 1 Gunslinging . | . . . Exploded . | . . . Melee 1 | . 1 . Uniques/NPCs Destroyed . | . . . Combat | -11 -10 -10 -------- Run | Yrd Mat Min Hostile Shots Fired 135 | 3 86 46 Missed 41 | 2 26 13 Damage Taken 870 | 11 509 350 Core 252 | . 141 111 Absorbed by Shields . | . . . Redirected to Shielding 1 | . . 1 Core Remaining (%) 100 | 100 . . Volleys Fired 40 | 2 11 27 Largest 2 | 2 2 2 Hottest 135 | 90 90 135 Shots Fired 74 | 4 21 49 Gun 66 | 4 21 41 Cannon 8 | . . 8 Launcher . | . . . Special . | . . . Kinetic 19 | . . 19 Thermal 42 | 2 10 30 Explosive . | . . . Electromagnetic 13 | 2 11 . Robot Hit Streak 6 | 1 6 6 Robot Miss Streak 4 | 2 4 4 Penetration Max . | . . . Secondary Targets . | . . . Shots Hit Robots 47 | 1 17 29 Core Hits 22 | 1 7 14 Critical Kills . | . . . Critical Parts Destroyed . | . . . Critical Strikes 4 | . 1 3 Burn 4 | . 1 3 Melee Attacks 13 | . 13 . Impact 13 | . 13 . Slashing . | . . . Piercing . | . . . Sneak Attacks . | . . . Combat Hostiles . | . . . Follow-up Attacks . | . . . Damage Inflicted 755 | 15 293 447 Guns 559 | 15 166 378 Cannons 69 | . . 69 Explosions . | . . . Melee 124 | . 124 . Ramming 3 | . 3 . Kinetic 95 | . . 95 Thermal 442 | . 90 352 Explosive . | . . . Electromagnetic 91 | 15 76 . Impact 124 | . 124 . Slashing . | . . . Piercing . | . . . Highest Corruption 1 | 1 1 1 Average Corruption 1 | 1 1 1 Corruption Purged . | . . . Corruption Blocked . | . . . Effects 5 | . 3 2 Matter Fused 2 | . 1 1 Heat Flow Errors 2 | . 1 1 Alerts 1 | . 1 . Overload Shots . | . . . Overflow Damage 26 | . 26 . Projectiles . | . . . Explosions . | . . . Melee 26 | . 26 . Knockbacks . | . . . Impact . | . . . Kinetic . | . . . Secondary . | . . . Self-Inflicted Damage . | . . . Shots . | . . . Rammed . | . . . Targets Rammed 2 | 1 1 . Kicked 2 | 1 1 . Crushed . | . . . Highest Temperature 231 | 60 139 231 Average Temperature 52 | 31 40 62 Received Heat Transfer 114 | 6 45 63 Siege Activations . | . . . Robots Corrupted . | . . . Combat Hostiles . | . . . Parts Fried 1 | . 1 . Impact Corruptions 1 | . 1 . Robots Melted . | . . . Combat Hostiles . | . . . Parts Melted 1 | . . 1 Heat Transferred 1221 | . 333 888 Parts Sabotaged . | . . . Parts Stolen . | . . . Parts Stripped . | . . . Power Chain Reactions . | . . . Alert | -11 -10 -10 ------- Run | Yrd Mat Min Peak Influence 286 | 20 165 286 Initial 64 | . 13 64 Average 113 | 4 74 163 Maximum Alert Level 1 | . . 1 Low Security (%) 78 | 100 100 59 Level 1 21 | . . 40 Level 2 . | . . . Level 3 . | . . . Level 4 . | . . . Level 5 . | . . . High Security . | . . . Max Security . | . . . Squads Dispatched 1 | . 1 . Investigation . | . . . Extermination . | . . . Reinforcement 1 | . 1 . Assault . | . . . Garrison . | . . . Intercept . | . . . Searches Triggered . | . . . Construction Impeded . | . . . Haulers Reinforced . | . . . Active Scanning Responses . | . . . Cargo Convoy Interrupts . | . . . Stealth | -11 -10 -10 --------- Run | Yrd Mat Min Distress Signals . | . . . Communications Jammed . | . . . Distress Signals . | . . . Times Spotted 27 | 1 11 15 Peak Tracking Total 4 | 1 4 3 Tactical Retreats . | . . . Traps | -11 -10 -10 ------- Run | Yrd Mat Min Traps Triggered . | . . . Indirectly . | . . . Trap Hack Attempts . | . . . Triggered . | . . . Disarmed . | . . . Reprogrammed . | . . . Reused . | . . . Traps Extracted . | . . . Installed . | . . . Triggered . | . . . Machines | -11 -10 -10 ---------- Run | Yrd Mat Min Machines Disabled 1 | . 1 . Max in Single Turn 1 | . 1 . Machines Repaired . | . . . Machines Dismantled . | . . . Machines Sabotaged . | . . . Overloaded Fab Kills . | . . . Hacking | -11 -10 -10 --------- Run | Yrd Mat Min Machines Accessed 1 | . 1 . Terminals . | . . . Fabricators . | . . . Repair Stations . | . . . Recycling Units 1 | . 1 . Scanalyzers . | . . . Garrison Access . | . . . Total Hacks 4 | . 4 . Successful 3 | . 3 . Failed 1 | . 1 . Catastrophic . | . . . Database Lockouts . | . . . Manual . | . . . Terminals . | . . . Fabricators . | . . . Repair Stations . | . . . Recycling Units 4 | . 4 . Scanalyzers . | . . . Garrison Access . | . . . Terminal Hacks . | . . . Fabricator Hacks . | . . . Repair Station Hacks . | . . . Recycling Unit Hacks 3 | . 3 . Process 1 | . 1 . Report Inventory 1 | . 1 . Retrieve Components 1 | . 1 . Scanalyzer . | . . . Garrison Access Hacks . | . . . Unauthorized Hacks . | . . . Terminals . | . . . Fabricators . | . . . Repair Stations . | . . . Recycling Units . | . . . Scanalyzers . | . . . Garrison Access . | . . . Data Cores Recovered . | . . . Used . | . . . Hacking Detections 1 | . 1 . Full Trace Events . | . . . Feedback Events . | . . . Feedback Blocked . | . . . Robot Schematics Acquired . | . . . Robots Built . | . . . Authchips . | . . . Time . | . . . Total Robot Build Rating . | . . . Part Schematics Acquired . | . . . Parts Built . | . . . Authchips . | . . . Time . | . . . Total Part Build Rating . | . . . Parts Repaired . | . . . Time . | . . . Parts Recycled . | . . . Recycled Matter . | . . . Retrieved Matter . | . . . Retrieved Components . | . . . Parts Scanalyzed . | . . . Part Schematics Acquired . | . . . Parts Damaged . | . . . Bothacking | -11 -10 -10 ------------ Run | Yrd Mat Min Used RIF Installer . | . . . Robots Hacked . | . . . Non-combat . | . . . Combat . | . . . Robot Hacks Applied . | . . . Relay Couplers Released . | . . . Fabnet Peak Effective % . | . . . Robots Rewired . | . . . Allies Hacked . | . . . Hacks Repelled . | . . . Allies | -11 -10 -10 -------- Run | Yrd Mat Min Total Allies 2 | . . 2 Largest Group 2 | . . 2 Highest-Rated Group 45 | . . 45 Highest-Rated Ally 31 | . . 31 Total Orders . | . . . Ally Attacks 3 | . . 3 Total Damage 61 | . . 61 Kills 1 | . . 1 Allies Corrupted . | . . . Allies Melted . | . . . Intel | -11 -10 -10 ------- Run | Yrd Mat Min Robot Analysis Total . | . . . Derelict Logs Recovered 1 | . . 1 Drone Launches . | . . . Drone Recoveries . | . . . Exploration | -11 -10 -10 ------------- Run | Yrd Mat Min Turns Passed 1019 | 122 353 544 Spaces Moved 733 | 100 200 433 Core 30 | 28 . 2 Treads . | . . . Legs 438 | 72 158 208 Wheels 238 | . 42 196 Hover 27 | . . 27 Flight . | . . . Fastest Speed 50 | 50 80 77 Average Speed 103 | 100 111 100 Slowest Speed 250 | 120 190 250 Overloaded Moves . | . . . Propulsion Burnouts . | . . . Robots Hopped . | . . . Cave-ins Triggered . | . . . Exploration Rate (%) 44 | 8 34 91 Regions Visited 2 Branch Regions 1 Pre-discovered Areas . | . . . Known Exits Taken . | . . . Unknown Exits Taken 2 | 1 1 . Scrap Searched 3 | . . 3 Spaces Dug . | . . . Terrain Destroyed . | . . . Melee . | . . . Projectile . | . . . AOE . | . . . Terrain Rammed . | . . . Walls Destroyed . | . . . Machines Disabled . | . . . Actions | -11 -10 -10 --------- Run | Yrd Mat Min Total 904 | 117 285 502 Wait 33 | . 33 . Move 731 | 99 199 433 Hop . | . . . Pick Up 37 | 9 12 16 Fast Attach . | . . . Attach 13 | 6 4 3 Detach 1 | . 1 . Swap 12 | . 5 7 Drop 22 | . 6 16 Fire 40 | 2 11 27 Melee 13 | . 13 . Ram . | . . . Kick 2 | 1 1 . Crush . | . . . Escape Stasis . | . . . Rewire . | . . . Trap . | . . . Miscellaneous . | . . . Route ------- -11/Scrapyard -10/Materials -10/Mines (discovered 2 exits: [*Mat x2]) History --------- Turn | Location | Event 2 | -11/Scrapyard | Met Revision 17 81 | -11/Scrapyard | Discovered new exit (range 8) 123 | -11/Scrapyard | Entered Materials 304 | -10/Materials | Build established: Mutant 468 | -10/Materials | Discovered new exit (range 5) 475 | -10/Materials | Core integrity fell below 50% 476 | -10/Materials | Entered Mines 545 | -10/Mines | Assembled infested the area 580 | -10/Mines | Met a Derelict bent on vengeance 698 | -10/Mines | Core integrity fell below 20% 782 | -10/Mines | Learned 2 Materials zone layouts 976 | -10/Mines | Discovered new exit (range 5) 1014 | -10/Mines | Discovered new exit (range 11) 1020 | -10/Mines | Destroyed by S-10 Pest with Light Assault Rifle Last Messages --------------- S-10 Pest destroyed. Acquired 19 matter. Dropped Beamcaster. Acquired Mak. Leg. Dropped Mak. Leg. Acquired 10 matter. Acquired Mak. Power Source. Dropped Mak. Power Source. D-53 Grenadier destroyed. The unstable cave ceiling collapses. K-01 Serf collects debris. EXIT=FOUND Acquired Cmb. Airjet. Dropped Carbon-fiber Leg. Acquired 4 matter. Dropped Aluminum Leg. Acquired Cmb. Airjet. Acquired 16 matter. Acquired Lgt. Angular Momentum Engine. EXIT=FOUND Map ----- +----------------------------------------------------+ | ????????????????????????# #??????### ##?????## | | ?????????????????????#### #????????## ##???????# | | ????????????????###### ####??????####????????? | | ????????????????# % #??????????????????? | | ????????????????# #### # ## #??????????????????? | | ###########?????# #??## ## #??????????????????? | | #?????# #???### ## ##??####???????????? | | ####### #?????# ### #### ##??????????? | | ## #?????# #??????????? | | " """ """ ##[######?????#### #??????##### | | " """ """ ##*#?????????????# #??????# | | " """ """ ##=#?????????????# ##?????# ## | | ##%#?????????????## ## ###???# #? | | " """ """ ##=#??????????????###### ##??# #? | | " """ """[= %#???????????????????# #### #? | | " """ """*####???????????????????## #? | | #????????###?????######## # #### #? | | " """ """ #????????# ### #?## #? | | " """ """ #????????# #?????######## #?# ### #? | | " """ """ #????????#t###??????????# #?# ## | | #???????##=% ##?????????# ####### | | " """ """ #?????### ###???????# #???# | | " """ """ #????## < ######### #???## | | " """ """ #????# t #????## | | #????# = % #?????## # | | ###########????## @####=<% ##??????#### | | ????????????????# sss ##??# = ##??????????? | | ????????????????## ######???# ####???????????? | | ?????????????????# ##????????# ##??????????????? | | ?????????????????# #?????????# #???????????????? | | ????????????????? ????????? ##???????????????? | | ???????????????? ???????? ###????????????????? | | ??????????????? #?????? #???????????????????? | | ?????????????? """ #????? ????????????????????? | | ????????????? """ #????# ????????????????????? | | ???????????? """ #????# ?????????????????????? | | ???????????? < #?????##?????????????????????? | | ??????????? ??? #????????????????????????????? | | ???????????#?????####????????????????????????????? | | ?????????????????????????????????????????????????? | | ?????????????????????????????????????????????????? | | ?????????????????????????????????????????????????? | | ?????????????????????????????????????????????????? | | ?????????????????????????????????????????????????? | | ?????????????????????????????????????????????????? | | | | | | | | | | | +----------------------------------------------------+ Best States ------------- Heat Dissipation 39 Energy Generation 10 Energy Capacity 450 Matter Stores 300 Matter Capacity 300 Sight Range 16 Terrain Scan Density 10 Utility Shielding 33 Evasion (%) 55 Item Schematics ----------------- None Robot Schematics ------------------ None Fabricated ------------ Nothing Alien Tech Used ----------------- None Achievements -------------- None Challenges ------------ None Game ------ Seed ShrapnelFlyingRedistributor Manual? 0 Play Time 00:22:00 Cumulative 0.7 hours Start 2024.04.01 @ 12:27:16 End 2024.04.01 @ 12:49:40 Sessions 1 Manual Loads 0 Difficulty Rogue Special Mode None Game No. 2 Rogue 2 Adventurer 0 Explorer 0 Win Type - Total 0 Types 0/0/0/0/0/0/0/0/0 Lore% 0 Gallery% 2 Achievement% 2 Wizard Run 0 Options --------- Layout 1 ASCII 0 Keyboard 0 Movement Arrows Keybinds 0 Fullscreen 1 Font 24/Smallcaps Map View 50x35 Zoom Use 0% Tactical HUD 0 Map Filters NONE Filters NONE Steam 1 RUN: 22550cc8-cf7d-4d05-b888-9176a99ccf14